Cogmind - Beta 16 @@@ ROGUE MODE // 2025.11.09 @ 16:17:30 Player: bschuck Result: Destroyed by G-34 Mercenary with Small Laser Performance ------------- Evolutions (1) 500 Regions Visited (3) 600 Robots Destroyed (29) 145 Value Destroyed (1010) 1010 Prototype IDs (0) 0 Alien Tech Used (0) 0 Bonus (0) 0 TOTAL SCORE: 2255 Bonus ------- None Cogmind --------- Core Integrity 0/400 Matter 300/300 Energy 100/100 System Corruption 1% Temperature Cool (6) Movement Core (500) Ox9 Location -9/Storage Parts ------- > --- POWER (2) -------- (None) > --- PROPULSION (2) --- (None) > --- UTILITY (3) ------ Heat Sink Large Storage Unit Power Shielding > --- WEAPON (2) ------- Beam Rifle Spread Laser > --- INVENTORY (15) --- Improved Ion Engine Aluminum Leg Heat Sink Large Storage Unit Backup Plating I Small Laser Backup Laser I Mining Laser Mining Laser Plasma Cutter Peak State ------------ > --- POWER ------------ Improved Ion Engine Light Nuclear Core > --- PROPULSION ------- Wheel Armored Wheel > --- UTILITY ---------- Heat Sink Small Storage Unit Large Storage Unit > --- WEAPON ----------- Light Assault Rifle Light Assault Rifle > --- INVENTORY -------- Improved Ion Engine Aluminum Leg Aluminum Leg Aluminum Leg Armored Wheel Flight Unit Large Storage Unit Power Shielding Mining Laser Mining Laser Plasma Cutter Plasma Cutter [Rating: 14] Favorites ----------- Power Improved Ion Engine Engine Improved Ion Engine Power Core Light Nuclear Core Propulsion Aluminum Leg Leg Aluminum Leg Wheel Wheel Flight Unit Flight Unit Utility Large Storage Unit Device Heat Sink Storage Large Storage Unit Protection Light Armor Plating Weapon Light Assault Rifle Energy Gun Beam Rifle Ballistic Gun Light Assault Rifle Special Weapon Plasma Cutter Build | -11 -10 -9 -9 ------- Run | Yrd Mat Mat Sto Slots Evolved 2 | . . 2 . Power 1 | . . 1 . Propulsion . | . . . . Utility 1 | . . 1 . Weapon . | . . . . Parts Attached 39 | 6 8 4 21 Power 10 | 1 2 2 5 Engine 9 | 1 2 1 5 Core 1 | . . 1 . Reactor . | . . . . Propulsion 11 | 2 2 1 6 Treads . | . . . . Leg 6 | 2 . . 4 Wheel 4 | . 2 1 1 Hover . | . . . . Flight 1 | . . . 1 Utility 8 | 1 2 1 4 Device 3 | . . 1 2 Storage 3 | 1 2 . . Processor . | . . . . Hackware . | . . . . Protection 2 | . . . 2 Artifact . | . . . . Weapon 10 | 2 2 . 6 Energy Gun 4 | 1 . . 3 Energy Cannon . | . . . . Ballistic Gun 5 | 1 2 . 2 Ballistic Cannon . | . . . . Launcher . | . . . . Special Weapon 1 | . . . 1 Impact Weapon . | . . . . Slashing Weapon . | . . . . Piercing Weapon . | . . . . Special Melee Weapon . | . . . . Unidentified Prototypes . | . . . . Parts Lost 19 | . 4 1 14 Power 6 | . 1 1 4 Propulsion 6 | . 2 . 4 Utility 3 | . . . 3 Weapon 4 | . 1 . 3 Highest Loss Streak 5 | . 4 1 5 To Critical Strikes . | . . . . Average Backups 10 | 2 4 10 13 Power 1 | . . 1 1 Propulsion 2 | 1 1 3 2 Utility 3 | . 1 2 3 Weapon 3 | . 1 2 4 Tool/Special . | . . . . Unused Backups 9 | . . . 9 Power 1 | . . . 1 Propulsion . | . . . . Utility 2 | . . . 2 Weapon 5 | . . . 5 Tool/Special 1 | . . . 1 Average Slot Usage (%) 90 | . 84 96 91 Engine 17 | . 14 18 18 Leg 12 | . 13 . 14 Wheel 5 | . 6 22 3 Device 8 | . . 11 10 Storage 17 | . 24 22 14 Protection 4 | . . . 6 Energy Gun 9 | . 10 . 9 Ballistic Gun 12 | . 14 22 10 Peak Build Rating 14 | 6 7 14 14 Average Rating 10 | 4 5 10 12 On Entrance 6 | . 6 7 14 Avg Prop Armor Cover (%) . | . . . . Naked Turns . | . . . . Heaviest Build 44 | 13 33 40 44 Greatest Support 24 | 20 20 22 24 Greatest Overweight (x) 10 | 4 9 1 10 Average Overweight (x) 1 | . 1 1 1 Largest Inventory Capacity 15 | 8 15 15 15 Average Capacity 14 | 7 13 15 15 Most Carried 15 | 5 8 14 15 Average Carried 10 | 2 4 10 13 Final Capacity 15 | 8 15 15 15 Final Carried 12 | 4 6 12 10 Class Distribution -------------------- 53% | Mutant 46% | Scavenger-Mutant Dominant Class ---------------- Mutant | -10/Materials Mutant | -9/Materials Scavenger-Mutant | -9/Storage Resources | -11 -10 -9 -9 ----------- Run | Yrd Mat Mat Sto Matter Collected 722 | 146 170 90 316 Remotely . | . . . . Salvage Created 1186 | . 170 148 868 Parts 61 | . 9 8 44 Haulers Intercepted . | . . . . Recyclers Shooed 1 | . . 1 . Parts Field Recycled . | . . . . Retrieved Matter . | . . . . Parts Self-Destructed . | . . . . Prevented . | . . . . Parts Restored . | . . . . Kills | -11 -10 -9 -9 ------- Run | Yrd Mat Mat Sto Combat Hostiles Destroyed 26 | . 5 3 18 Guns 24 | . 4 3 17 AOE 1 | . . . 1 Classes Destroyed 6 | . 3 1 2 Recycler 1 | . . . 1 Watcher 2 | . 1 . 1 Swarmer 3 | . 3 . . Grunt 13 | . 2 2 9 Brawler 1 | . . . 1 Sentry 9 | . . 1 8 Best Kill Streak 5 | . 5 2 4 Combat Bots Only 5 | . 5 2 4 Max Kills in Single Turn 2 | . 1 1 2 Gunslinging 1 | . . . 1 Exploded 1 | . . . 1 Melee . | . . . . Uniques/NPCs Destroyed . | . . . . Combat | -11 -10 -9 -9 -------- Run | Yrd Mat Mat Sto Hostile Shots Fired 304 | . 94 26 184 Missed 89 | . 25 9 55 Hits 215 | . 69 17 129 Melee 2 | . . . 2 Projectile 213 | . 69 17 127 Critical Strikes 6 | . 2 1 3 Damage Taken 2655 | . 675 234 1746 Core 578 | . 168 62 348 Absorbed by Shields . | . . . . Redirected to Shielding 6 | . . . 6 Core Remaining (%) 66 | 100 32 . . Volleys Fired 116 | . 24 16 76 Largest 2 | . 2 2 2 Hottest 121 | . 70 40 121 Shots Fired 197 | . 41 32 124 Gun 191 | . 41 32 118 Cannon . | . . . . Launcher . | . . . . Special 6 | . . . 6 Kinetic 123 | . 19 32 72 Thermal 74 | . 22 . 52 Explosive . | . . . . Electromagnetic . | . . . . Robot Hit Streak 10 | . 6 5 10 Robot Miss Streak 5 | . 3 4 5 Penetration Max . | . . . . Secondary Targets 5 | . . 1 4 Max Gunslinging Chain 1 | . . 1 1 Shots Hit Robots 128 | . 25 19 84 Core Hits 62 | . 10 9 43 Critical Kills 1 | . . . 1 Critical Parts Destroyed . | . . . . Critical Strikes 5 | . 2 . 3 Burn 3 | . 2 . 1 Destroy 1 | . . . 1 Sever 1 | . . . 1 Melee Attacks . | . . . . Impact . | . . . . Slashing . | . . . . Piercing . | . . . . Sneak Attacks . | . . . . Combat Hostiles . | . . . . Follow-up Attacks . | . . . . Damage Inflicted 1528 | . 264 154 1110 Guns 1457 | . 264 154 1039 Cannons . | . . . . Explosions 40 | . . . 40 Melee . | . . . . Ramming . | . . . . Kinetic 855 | . 113 154 588 Thermal 633 | . 151 . 482 Explosive 40 | . . . 40 Electromagnetic . | . . . . Impact . | . . . . Slashing . | . . . . Piercing . | . . . . Highest Corruption 1 | . . . 1 Average Corruption 1 | . . . 1 Corruption Purged . | . . . . Corruption Blocked . | . . . . Effects 8 | . . . 8 Message Errors 2 | . . . 2 Energy Discharges 1 | . . . 1 Parts Rejected 1 | . . . 1 Data Loss (minor) 2 | . . . 2 Misfires 1 | . . . 1 Alerts 1 | . . . 1 Overload Shots . | . . . . Overflow Damage 10 | . . . 10 Projectiles . | . . . . Explosions 10 | . . . 10 Melee . | . . . . Knockbacks . | . . . . Impact . | . . . . Kinetic . | . . . . Secondary . | . . . . Self-Inflicted Damage 57 | . . . 57 Shots 1 | . . . 1 Rammed . | . . . . Targets Rammed . | . . . . Kicked . | . . . . Crushed . | . . . . Highest Temperature 273 | . 273 2 171 Average Temperature 58 | . 107 2 32 Received Heat Transfer 1002 | . 186 114 702 Effects 1 | . 1 . . Interference 1 | . 1 . . Siege Activations . | . . . . Martial Activations . | . . . . Shielding Activations . | . . . . Robots Disrupted . | . . . . Combat Hostiles . | . . . . Robots Corrupted . | . . . . Combat Hostiles . | . . . . Parts Fried . | . . . . Impact Corruptions . | . . . . Robots Melted 1 | . 1 . . Combat Hostiles 1 | . 1 . . Parts Melted 1 | . 1 . . Heat Transferred 1749 | . 592 . 1157 Parts Sabotaged . | . . . . Parts Stolen . | . . . . Parts Stripped . | . . . . Power Chain Reactions . | . . . . Alert | -11 -10 -9 -9 ------- Run | Yrd Mat Mat Sto Maximum Alert Level . | . . . . Low Security (%) 100 | 100 100 100 100 Level 1 . | . . . . Level 2 . | . . . . Level 3 . | . . . . Level 4 . | . . . . Level 5 . | . . . . High Security . | . . . . Max Security . | . . . . Peak Influence 166 | . 80 50 166 Initial 12 | . . 8 12 Average 46 | . 26 19 59 Influence Increases 845 | . 127 80 638 Destroy 0b10 Robot/C 520 | . 100 60 360 Destroy 0b10 Robot/NC 15 | . 5 . 10 Destroy Leader 164 | . 22 20 122 Disable Machine 30 | . . . 30 Destroy Structure 11 | . . . 11 Lose Combat Pursuer 105 | . . . 105 Influence Decreases 729 | . 107 70 552 Entered New Map 30 | . . 12 18 Time Decay 549 | . 87 48 414 Lost Part 150 | . 20 10 120 Squads Dispatched 5 | . . . 5 Investigation 2 | . . . 2 Extermination . | . . . . Reinforcement 1 | . . . 1 Assault . | . . . . Garrison 2 | . . . 2 Intercept . | . . . . Searches Triggered . | . . . . Construction Impeded . | . . . . Haulers Reinforced . | . . . . Active Scanning Responses . | . . . . Cargo Convoy Interrupts . | . . . . Stealth | -11 -10 -9 -9 --------- Run | Yrd Mat Mat Sto Distress Signals 3 | . 1 . 2 Communications Jammed . | . . . . Distress Signals . | . . . . Times Spotted 40 | . 8 3 29 Peak Tracking Total 7 | . 7 2 6 Tactical Retreats 5 | . . . 5 Traps | -11 -10 -9 -9 ------- Run | Yrd Mat Mat Sto Traps Triggered 4 | . . . 4 Indirectly . | . . . . Trap Hack Attempts . | . . . . Triggered . | . . . . Disarmed . | . . . . Reprogrammed . | . . . . Reused . | . . . . Traps Extracted . | . . . . Installed . | . . . . Triggered . | . . . . Machines | -11 -10 -9 -9 ---------- Run | Yrd Mat Mat Sto Machines Disabled 2 | . . . 2 Max in Single Turn 2 | . . . 2 Machines Repaired . | . . . . Machines Dismantled . | . . . . Machines Sabotaged . | . . . . Overloaded Fab Kills . | . . . . Hacking | -11 -10 -9 -9 --------- Run | Yrd Mat Mat Sto Machines Accessed 2 | . 1 . 1 Terminals 1 | . . . 1 Fabricators . | . . . . Repair Stations . | . . . . Recycling Units 1 | . 1 . . Scanalyzers . | . . . . Garrison Access . | . . . . Total Hacks 5 | . 1 . 4 Successful 3 | . . . 3 Failed 2 | . 1 . 1 Catastrophic . | . . . . Database Lockouts . | . . . . Manual . | . . . . Terminals 4 | . . . 4 Fabricators . | . . . . Repair Stations . | . . . . Recycling Units 1 | . 1 . . Scanalyzers . | . . . . Garrison Access . | . . . . Terminal Hacks 3 | . . . 3 Record 2 | . . . 2 Zone Layout 1 | . . . 1 Fabricator Hacks . | . . . . Repair Station Hacks . | . . . . Recycling Unit Hacks . | . . . . Scanalyzer . | . . . . Garrison Access Hacks . | . . . . Unauthorized Hacks . | . . . . Terminals . | . . . . Fabricators . | . . . . Repair Stations . | . . . . Recycling Units . | . . . . Scanalyzers . | . . . . Garrison Access . | . . . . Data Cores Recovered . | . . . . Used . | . . . . Hacking Detections 2 | . 1 . 1 Full Trace Events 1 | . . . 1 Feedback Events . | . . . . Feedback Blocked . | . . . . Robot Schematics Acquired . | . . . . Robots Built . | . . . . Authchips . | . . . . Time . | . . . . Total Robot Build Rating . | . . . . Part Schematics Acquired . | . . . . Parts Built . | . . . . Authchips . | . . . . Time . | . . . . Total Part Build Rating . | . . . . Part Studies Acquired . | . . . . Parts Repaired . | . . . . Time . | . . . . Parts Recycled . | . . . . Recycled Matter . | . . . . Retrieved Matter . | . . . . Retrieved Components . | . . . . Parts Scanalyzed . | . . . . Part Schematics Acquired . | . . . . Parts Damaged . | . . . . Bothacking | -11 -10 -9 -9 ------------ Run | Yrd Mat Mat Sto Used RIF Installer . | . . . . Robots Hacked . | . . . . Non-combat . | . . . . Combat . | . . . . Robot Hacks Applied . | . . . . Relay Couplers Released . | . . . . Fabnet Peak Effective % . | . . . . Robots Rewired . | . . . . Allies Hacked . | . . . . Hacks Repelled . | . . . . Allies | -11 -10 -9 -9 -------- Run | Yrd Mat Mat Sto Total Allies . | . . . . Largest Group . | . . . . Highest-Rated Group . | . . . . Highest-Rated Ally . | . . . . Total Orders . | . . . . Ally Attacks . | . . . . Total Damage . | . . . . Kills . | . . . . Allies Corrupted . | . . . . Allies Melted . | . . . . Intel | -11 -10 -9 -9 ------- Run | Yrd Mat Mat Sto Active Infowar (turns) . | . . . . Robot Analysis Total . | . . . . Derelict Logs Recovered . | . . . . Drone Launches . | . . . . Drone Recoveries . | . . . . Exploration | -11 -10 -9 -9 ------------- Run | Yrd Mat Mat Sto Turns Passed 1576 | 97 281 150 1048 Spaces Moved 657 | 50 145 97 365 Core 19 | 11 6 . 2 Treads . | . . . . Legs 353 | 39 70 . 244 Wheels 271 | . 69 97 105 Hover . | . . . . Flight 14 | . . . 14 Fastest Speed 50 | 50 95 95 100 Average Speed 176 | 163 138 97 214 Slowest Speed 680 | 250 500 100 680 Overloaded Moves . | . . . . Propulsion Burnouts . | . . . . Robots Hopped . | . . . . Potential Cave-ins . | . . . . Cave-ins Triggered . | . . . . Exploration Rate (%) 23 | 4 25 10 54 Regions Visited 3 Branch Regions 1 Pre-discovered Areas . | . . . . Known Exits Taken . | . . . . Unknown Exits Taken 3 | 1 1 1 . Scrap Searched . | . . . . Spaces Dug . | . . . . Terrain Destroyed 11 | . . . 11 Melee . | . . . . Projectile . | . . . . AOE 11 | . . . 11 Terrain Rammed . | . . . . Walls Destroyed . | . . . . Machines Disabled . | . . . . Actions | -11 -10 -9 -9 --------- Run | Yrd Mat Mat Sto Total 894 | 65 187 127 515 Wait . | . . . . Move 654 | 49 144 96 365 Hop . | . . . . Pick Up 49 | 10 9 10 20 Fast Attach . | . . . . Attach 37 | 6 7 3 21 Detach . | . . . . Swap 2 | . 1 1 . Drop 14 | . 2 1 11 Fire 116 | . 24 16 76 Melee . | . . . . Ram . | . . . . Kick . | . . . . Crush . | . . . . Escape Stasis 21 | . . . 21 Rewire . | . . . . Trap . | . . . . Miscellaneous 1 | . . . 1 Route ------- -11/Scrapyard -10/Materials -9/Materials -9/Storage (discovered 1 exit: [*Mat]) History --------- Turn | Location | Event 18 | -11/Scrapyard | Discovered new exit (range 15) 98 | -11/Scrapyard | Entered Materials 240 | -10/Materials | Core integrity fell below 50% 282 | -10/Materials | Lost 4 parts (1p2n1w) 336 | -10/Materials | Build established: Mutant 363 | -10/Materials | Discovered new exit (range 15) 379 | -10/Materials | Entered another Materials area 379 | -9/Materials | Evolved 2 slots: Power x1, Utility x1 493 | -9/Materials | Discovered new exit (range 12) 529 | -9/Materials | Entered Storage 647 | -9/Storage | Lost 3 parts (1p1n1u) 868 | -9/Storage | Core integrity fell below 50% 1025 | -9/Storage | Build established: Scavenger-Mutant 1334 | -9/Storage | Discovered new exit (range 15) 1380 | -9/Storage | Garrison activated, responded to threat 1417 | -9/Storage | Core integrity fell below 20% 1433 | -9/Storage | Lost 5 parts (1p1n2u1w) 1577 | -9/Storage | Destroyed by G-34 Mercenary with Small Laser Last Messages --------------- Acquired 1 matter. R-06 Scavenger collects Beam Rifle. Y-45 Defender destroyed. R-06 Scavenger collects Lgt. Treads. R-06 Scavenger collects Imp. Ion Engine. Acquired 5 matter. Acquired Beam Rifle. Hvy. Assault Rifle destroyed. G-34 Mercenary destroyed. Aluminum Leg destroyed. G-34 Mercenary suffers critical hit (Burn). G-34 Mercenary heat short circuits Sml. Laser. G-34 Mercenary destroyed. Acquired 33 matter. K-01 Serf collects debris. Acquired 2 matter. Flight Unit destroyed. Acquired Aluminum Leg. R-06 Scavenger collects Hvy. Assault Rifle. Ion Engine destroyed. Map ----- +----------------------------------------------------+ | ?????????????????# #####+#################### | | ?????????????????# | | ?????????????????# ^ != | | ?????????????????# ^ %! | | ????????????? ################# *###### | | ??????????? #???????????????# # | | ??????????? "" #???????????????# # | | ????????????"" #?????????????### # | | ????????????"" #?????????????# # | | ????????????"" "" +?????????##### # | | ????????????" T" #?????????+ + | | ????????????" "" +?????????##### # | | ???????????? ? #?????????????# # | | ?????????????? ?? ??????###????### ####### | | ????????????????###??#+#??????# ?? ?# #?????? | | ??????????????????????????????? """ ? # #?????? | | ??????????????????????????????? """ # #?????? | | ??????????????????????????????? """ + #?????? | | ??????????????????????????????? """ # #?????? | | ??????????????????????????????? """ ??# #?????? | | ??????????????????????????????# ????# #?????? | | ??????????????????????????????# ??????# #?????? | | ??????????????????????????????#????????#= ####### | | ????????????????????????#+#????????????#% | | ??????????????????????### ############## % | | ??????????????????????" /@% g | | ??????????????????????#T########################## | | ?????????????????????????????????????????????????? | | ?????????????????????????????????????????????????? | | ?????????????????????????????????????????????????? | | | | | | | | | | | | | | | | | | | | | | | | | | | | | | | | | | | | | | | | | +----------------------------------------------------+ Best States ------------- Heat Dissipation 38 Energy Generation 21 Energy Capacity 430 Matter Stores 300 Matter Capacity 300 Sight Range 16 Terrain Scan Density 10 Armor Coverage 150 Power Shielding 33 Evasion (%) 55 Item Schematics ----------------- None Robot Schematics ------------------ None Fabricated ------------ Nothing Repaired ---------- Nothing Studied --------- None Alien Tech Used ----------------- None Achievements -------------- None Challenges ------------ None Game ------ Seed HugeAngularLog Manual? 0 Play Time 00:26:18 Cumulative 27.4 hours Start 2025.11.09 @ 15:52:34 End 2025.11.09 @ 16:17:30 Sessions 1 Manual Loads 0 Difficulty Rogue Special Mode None Game No. 42 Rogue 31 Adventurer 0 Explorer 11 Win Type - Total 0 Types 0/0/0/0/0/0/0/0/0/0 Lore% 5 Gallery% 23 Achievement% 13 Wizard Run 0 Options --------- Layout 1 ASCII 0 Keyboard 0 Movement Mouse Keybinds 0 Fullscreen 1 Font 32/SmallcapsGlow Map View 50x35 Zoom Use 0% Tactical HUD 0 Map Filters NONE Filters NONE Steam 1 RUN: 7664a153-edde-4489-9d52-f61ab2fdd10b